fUST/lending_fUST_20260110
["ID","MTS","AMOUNT","RATE_DAILY","PERIOD"]
[401232731,1768059040868,-26257.46,0.00036712,30]
[401232733,1768059040878,-2195.79,0.00036712,30]
[401232735,1768059040887,-4887.27,0.00036712,30]
[401232738,1768059040896,-26257.46,0.00036712,30]
[401232739,1768059040906,-2195.79,0.00036712,30]
[401232741,1768059040915,-4887.27,0.00036712,30]
[401232743,1768059040924,-26257.46,0.00036712,30]
[401232745,1768059040934,-2195.79,0.00036712,30]
[401232747,1768059040943,-4887.27,0.00036712,30]
[401232749,1768059040952,-26257.46,0.00036712,30]
[401232752,1768059040962,-2195.79,0.00036712,30]
[401232753,1768059040971,-4887.27,0.00036712,30]
[401232755,1768059040981,-26257.46,0.00036712,30]
[401232758,1768059040991,-2195.79,0.00036712,30]
[401232759,1768059041000,-4887.3,0.00036712,30]
[401232761,1768059041009,-26257.46,0.00036712,30]
[401232763,1768059041018,-2195.79,0.00036712,30]
[401232765,1768059041028,-26257.46,0.00036712,30]
[401232767,1768059041037,-2195.79,0.00036712,30]
[401232769,1768059041046,-26257.46,0.00036712,30]
[401232771,1768059041055,-2195.79,0.00036712,30]
[401232773,1768059041064,-26257.46,0.00036712,30]
[401232775,1768059041073,-2195.79,0.00036712,30]
[401232777,1768059041082,-26257.46,0.00036712,30]
[401232779,1768059041091,-2195.79,0.00036712,30]
[401232781,1768059041100,-2195.79,0.00036712,30]
[401232783,1768059041109,-26257.46,0.00036712,30]
[401232785,1768059041119,-2195.79,0.00036712,30]
[401232787,1768059041128,-26257.46,0.00036712,30]
[401232789,1768059041137,-26257.46,0.00036712,30]
[401232791,1768059041147,-2195.88,0.00036712,30]
[401232793,1768059041156,-26257.46,0.00036712,30]
[401232795,1768059041165,-26257.46,0.00036712,30]
[401232797,1768059041174,-26257.46,0.00036712,30]
[401232799,1768059041184,-26257.54452659,0.00036712,30]
[401232801,1768059041193,-241.15003758,0.00036712,120]
[401232803,1768059041202,-151.0,0.00036712,31]
[401232805,1768059041214,-151.0,0.00036712,31]
[401232807,1768059041223,-151.0,0.00036712,31]
[401232809,1768059041232,-226.952409,0.00036712,31]
[401232811,1768059041242,-5048.48,0.00036712,30]
[401232813,1768059041251,-5048.48,0.00036712,30]
[401232815,1768059041260,-5048.48,0.00036712,30]
[401232817,1768059041270,-5048.48,0.00036712,30]
[401232819,1768059041279,-5048.48,0.00036712,30]
[401232821,1768059041289,-5048.48,0.00036712,30]
[401232823,1768059041298,-5048.48,0.00036712,30]
[401232825,1768059041308,-5048.48,0.00036712,30]
[401232827,1768059041317,-5048.48,0.00036712,30]
[401232829,1768059041327,-5048.48,0.00036712,30]
[401232831,1768059041336,-5048.48,0.00036712,30]
[401232833,1768059041346,-5048.48,0.00036712,30]
[401232835,1768059041356,-5048.48,0.00036712,30]
[401232837,1768059041365,-5048.48,0.00036712,30]
[401232839,1768059041374,-5048.48,0.00036712,30]
[401232841,1768059041384,-5048.48,0.00036712,30]
[401232843,1768059041393,-5048.48,0.00036712,30]
[401232845,1768059041402,-5048.48,0.00036712,30]
[401232847,1768059041411,-5048.48,0.00036712,30]
[401232849,1768059041421,-5048.48,0.00036712,30]
[401232851,1768059041430,-5048.48,0.00036712,30]
[401232853,1768059041440,-5048.48,0.00036712,30]
[401232855,1768059041449,-5048.48,0.00036712,30]
[401232857,1768059041458,-5048.65,0.00036712,30]
[401232859,1768059041467,-151.0,0.00036712,31]
[401232861,1768059041477,-151.0,0.00036712,31]
[401232863,1768059041487,-151.0,0.00036712,31]
[401232865,1768059041496,-151.0,0.00036712,31]
[401232867,1768059041505,-151.0,0.00036712,31]
[401232869,1768059041514,-151.0,0.00036712,31]
[401232871,1768059041524,-151.0,0.00036712,31]
[401232873,1768059041533,-151.0,0.00036712,31]
[401232875,1768059041542,-151.0,0.00036712,31]
[401232877,1768059041552,-151.0,0.00036712,31]
[401232879,1768059041563,-191.532893,0.00036712,31]
[401232881,1768059041572,-503.55820326,0.00036717,2]
[401232883,1768059041581,-503.55820326,0.0003673,2]
[401232885,1768059041590,-151.6053793,0.0003673,120]
[401232887,1768059041600,-3622.49329481,0.0003673,2]
[401232889,1768059041609,-198.08118128,0.00036744,30]
[401232891,1768059041619,-500.0,0.00036766,7]
[401232893,1768059041628,-500.0,0.00036766,7]
[401232895,1768059041637,-500.0,0.00036766,7]
[401232897,1768059041647,-500.0,0.00036766,7]
[401232899,1768059041656,-578.48545564,0.00036766,7]
[401232901,1768059041665,-260.12300135,0.00036766,7]
[401232902,1768059041675,-250.0,0.00036768,30]
[401232904,1768059041684,-151.0,0.00036768,30]
[401232907,1768059041693,-250.0,0.00036768,30]
[401232908,1768059041703,-237.59741754,0.00036813,20]
[401232910,1768059041712,-377.1655679,0.00036822,30]
[401232912,1768059041722,-377.1655679,0.00036822,30]
[401232915,1768059041732,-500.0,0.00036829,15]
[401232917,1768059041742,-500.0,0.00036829,15]
[401232919,1768059041751,-320.30857705,0.00036829,15]
[401232921,1768059041760,-500.0,0.00036829,15]
[401232923,1768059041769,-553.95212443,0.00036829,15]
[401232925,1768059041778,-320.50783616,0.00036829,15]
[401232927,1768059041787,-500.0,0.00036829,15]
[401232929,1768059041798,-500.97548421,0.00036829,15]
[401232931,1768059041809,-422.80349187,0.00036829,7]
[401232933,1768059041818,-200.0,0.00036829,7]
[401232934,1768059041827,-295.89347357,0.00036829,15]
[401232936,1768059041835,-379.74221389,0.00036829,7]
[401232938,1768059041847,-250.0,0.00036858,30]
[401232940,1768059041857,-151.0,0.00036858,30]
[401232942,1768059041866,-250.0,0.00036858,30]
[401232944,1768059041876,-1807147.52266742,0.0003687,20]
[401232946,1768059041885,-535919.69469436,0.0003687,7]
[401232948,1768059041895,-229.36172995,0.0003687,15]
[401232950,1768059041905,-197.72735479,0.0003687,12]
[401232952,1768059041915,-1112.51736042,0.0003687,10]
[401232955,1768059041924,-34052.11306054,0.0003687,7]
[401232956,1768059041934,-1565.29309854,0.0003687,14]
[401232959,1768059041944,-826.50161659,0.0003687,15]
[401232961,1768059041954,-1546.09672328,0.0003687,15]
[401232963,1768059041963,-2547.8412504,0.0003687,7]
[401232965,1768059041972,-1181.57567306,0.0003687,15]
[401232966,1768059041981,-245.21105007,0.0003687,10]
[401232968,1768059041990,-244.41641417,0.0003687,10]
[401232970,1768059041999,-200.0,0.0003687,10]
[401232972,1768059042009,-158.0,0.0003687,10]
[401232975,1768059042018,-328.56849028,0.0003687,2]
[401232976,1768059042028,-1055191.29781289,0.0003687,20]
[401232984,1768059042090,-488.57536421,0.0003687,20]
[401233212,1768059159654,209.59,7.303e-05,2]
[401233213,1768059160063,314.38,7.635e-05,2]
[401233214,1768059160713,274.89,7.967e-05,2]
[401233215,1768059160742,144.29,7.967e-05,2]
[401233216,1768059161157,523.97,8.299e-05,2]
[401233217,1768059161562,628.77,8.631e-05,2]
[401233219,1768059162196,733.56,8.962e-05,2]
[401233225,1768059171532,7969.42,8.797e-05,2]
[401233226,1768059171557,10000.01,8.797e-05,2]
[401233227,1768059171580,10000.01,8.797e-05,2]
[401233228,1768059171604,10000.01,8.797e-05,2]
[401233229,1768059171628,10000.01,8.797e-05,2]
[401233230,1768059171652,7519.7349531,8.797e-05,2]
[401233270,1768059253884,4252.615309,8.772e-05,2]
[401233298,1768059322458,491.28,5.877e-05,2]
[401233299,1768059322884,982.57,6.157e-05,2]
[401233300,1768059323342,1473.85,6.437e-05,2]
[401233302,1768059323757,1965.13,6.716e-05,2]
[401233303,1768059324286,834.564691,6.996e-05,2]
[401233304,1768059324317,1621.845309,6.996e-05,2]
[401233305,1768059324575,2947.7,7.276e-05,2]
[401233306,1768059325058,3438.98,7.556e-05,2]
[401233307,1768059325527,1991.484691,7.836e-05,2]
[401233308,1768059325555,1938.775309,7.836e-05,2]
[401233309,1768059326019,4421.55,8.116e-05,2]
[401233310,1768059326432,3639.684691,8.396e-05,2]
[401233311,1768059326461,1273.145309,8.396e-05,2]
[401233320,1768059401273,294.77,6.121e-05,2]
[401233321,1768059401717,442.15,6.399e-05,2]
[401233322,1768059402199,589.54,6.677e-05,2]
[401233323,1768059402630,736.92,6.956e-05,2]
[401233324,1768059403053,884.31,7.234e-05,2]
[401233325,1768059403492,1031.69,7.512e-05,2]
[401233326,1768059403980,1179.08,7.79e-05,2]
[401233327,1768059404404,1326.46,8.068e-05,2]
[401233328,1768059404796,1473.85,8.347e-05,2]
[401233331,1768059478411,184.37,7.238e-05,2]
[401233332,1768059478921,230.46,7.539e-05,2]
[401233333,1768059479343,276.55,7.841e-05,2]
[401233334,1768059479768,76.714691,8.142e-05,2]
[401233335,1768059479797,245.925309,8.142e-05,2]
[401233336,1768059480139,189.6,8.238e-05,2]
[401233337,1768059480185,368.73,8.444e-05,2]
[401233338,1768059480421,189.59,8.238e-05,2]
[401233339,1768059480588,414.82,8.745e-05,2]
[401233341,1768059550742,162.49,8.106e-05,2]
[401233342,1768059551167,185.71,8.406e-05,2]
[401233343,1768059551664,208.92,8.706e-05,2]
[401233344,1768059552074,232.13,9.007e-05,2]
[401233357,1768059743987,59293.01845794,0.000121,30]
[401233360,1768059864411,871.2312668,8.764e-05,2]
[401233363,1768059974478,170.781226,4.435e-05,2]
[401233364,1768059974666,170.781226,8.695e-05,2]
[401233386,1768060108067,-552.0,9.461e-05,2]
[401233387,1768060108098,-174.5305946,9.461e-05,2]
[401233388,1768060108129,-300.0,9.691e-05,2]
[401233389,1768060108165,-1200.0,9.691e-05,2]
[401233390,1768060108199,-300.0,9.691e-05,2]
[401233391,1768060142617,300.0,9.691e-05,2]
[401233400,1768060145661,4646.9488108,9.592e-05,2]
[401233401,1768060145692,10000.01,9.592e-05,2]
[401233404,1768060145724,10000.01,9.592e-05,2]
[401233414,1768060204773,300.0,9.591e-05,2]
[401233415,1768060208668,1200.0,9.591e-05,2]
[401233430,1768060231732,609.59356825,9.591e-05,2]
[401233432,1768060232065,-5236.71176124,9.592e-05,2]
[401233433,1768060234123,300.45191665,9.591e-05,2]
[401233434,1768060234174,500.0,9.591e-05,2]
[401233435,1768060234234,649.08676263,9.591e-05,2]
[401233436,1768060234287,649.08676263,9.591e-05,2]
[401233437,1768060234340,500.0,9.591e-05,2]
[401233438,1768060234420,500.0,9.591e-05,2]
[401233439,1768060234479,500.0,9.591e-05,2]
[401233440,1768060234526,500.0,9.591e-05,2]
[401233441,1768060234581,199.90580407,9.591e-05,2]
[401233442,1768060234641,500.0,9.591e-05,2]
[401233443,1768060234699,649.08676263,9.591e-05,2]
[401233444,1768060234756,500.0,9.591e-05,2]
[401233445,1768060234804,500.0,9.591e-05,2]
[401233446,1768060234850,500.0,9.591e-05,2]
[401233447,1768060234909,500.0,9.591e-05,2]
[401233448,1768060234961,442.79842314,9.591e-05,2]
[401233449,1768060234995,206.28833949,9.591e-05,2]
[401233450,1768060235051,500.0,9.591e-05,2]
[401233451,1768060235105,500.0,9.591e-05,2]
[401233452,1768060235157,500.0,9.591e-05,2]
[401233453,1768060235209,649.08676263,9.591e-05,2]
[401233454,1768060235257,439.90414407,9.591e-05,2]
[401233455,1768060235309,504.08212288,9.591e-05,2]
[401233456,1768060235361,500.0,9.591e-05,2]
[401233457,1768060235419,500.0,9.591e-05,2]
[401233458,1768060235636,649.08676263,9.591e-05,2]
[401233459,1768060235679,500.0,9.591e-05,2]
[401233460,1768060235724,500.0,9.591e-05,2]
[401233461,1768060235767,500.0,9.591e-05,2]
[401233462,1768060235811,649.08676263,9.591e-05,2]
[401233463,1768060235854,500.0,9.591e-05,2]
[401233464,1768060235897,500.0,9.591e-05,2]
[401233465,1768060235941,649.08676263,9.591e-05,2]
[401233466,1768060235984,500.0,9.591e-05,2]
[401233467,1768060236022,500.0,9.591e-05,2]
[401233468,1768060236067,253.38834304,9.591e-05,2]
[401233469,1768060236135,123609.5920554,8.709e-05,2]
[401233473,1768060238294,-395.69841959,9.591e-05,2]
[401233474,1768060238304,-500.0,9.591e-05,2]
[401233475,1768060238313,-500.0,9.591e-05,2]
[401233476,1768060238323,-500.0,9.591e-05,2]
[401233477,1768060238333,-649.08676263,9.591e-05,2]
[401233478,1768060238343,-500.0,9.591e-05,2]
[401233479,1768060238352,-500.0,9.591e-05,2]
[401233480,1768060238362,-649.08676263,9.591e-05,2]
[401233481,1768060238372,-500.0,9.591e-05,2]
[401233482,1768060238382,-500.0,9.591e-05,2]
[401233483,1768060238392,-500.0,9.591e-05,2]
[401233484,1768060238406,-649.08676263,9.591e-05,2]
[401233485,1768060238416,-500.0,9.591e-05,2]
[401233486,1768060238425,-500.0,9.591e-05,2]
[401233487,1768060238436,-500.0,9.591e-05,2]
[401233488,1768060238447,-500.0,9.591e-05,2]
[401233489,1768060238458,-649.08676263,9.591e-05,2]
[401233490,1768060238469,-500.0,9.591e-05,2]
[401233491,1768060238479,-500.0,9.591e-05,2]
[401233492,1768060238490,-500.0,9.591e-05,2]
[401233493,1768060238500,-500.0,9.591e-05,2]
[401233494,1768060238511,-649.08676263,9.591e-05,2]
[401233495,1768060238521,-500.0,9.591e-05,2]
[401233496,1768060238531,-500.0,9.591e-05,2]
[401233497,1768060238541,-500.0,9.591e-05,2]
[401233498,1768060238552,-500.0,9.591e-05,2]
[401233499,1768060238561,-649.08676263,9.591e-05,2]
[401233500,1768060238571,-500.0,9.591e-05,2]
[401233501,1768060238581,-500.0,9.591e-05,2]
[401233502,1768060238591,-500.0,9.591e-05,2]
[401233503,1768060238601,-649.08676263,9.591e-05,2]
[401233504,1768060238611,-500.0,9.591e-05,2]
[401233505,1768060238621,-500.0,9.591e-05,2]
[401233506,1768060238631,-649.08676263,9.591e-05,2]
[401233507,1768060238641,-500.0,9.591e-05,2]
[401233508,1768060238651,-500.0,9.591e-05,2]
[401233509,1768060238661,-500.0,9.591e-05,2]
[401233510,1768060238671,-649.08676263,9.591e-05,2]
[401233511,1768060238682,-500.0,9.591e-05,2]
[401233512,1768060238691,-500.0,9.591e-05,2]
[401233513,1768060238701,-500.0,9.591e-05,2]
[401233514,1768060238710,-649.08676263,9.591e-05,2]
[401233515,1768060238720,-500.0,9.591e-05,2]
[401233516,1768060238729,-500.0,9.591e-05,2]
[401233517,1768060238740,-500.0,9.591e-05,2]
[401233518,1768060238750,-500.0,9.591e-05,2]
[401233519,1768060238760,-649.08676263,9.591e-05,2]
[401233520,1768060238770,-500.0,9.591e-05,2]
[401233521,1768060238779,-500.0,9.591e-05,2]
[401233522,1768060238789,-500.0,9.591e-05,2]
[401233523,1768060238799,-649.08676263,9.591e-05,2]
[401233524,1768060238808,-451.6089071,9.591e-05,2]
[401233525,1768060238818,-500.0,9.591e-05,2]
[401233526,1768060238828,-500.0,9.591e-05,2]
[401233527,1768060238838,-500.0,9.591e-05,2]
[401233528,1768060238849,-649.08676263,9.591e-05,2]
[401233529,1768060238860,-500.0,9.591e-05,2]
[401233530,1768060238870,-500.0,9.591e-05,2]
[401233531,1768060238880,-500.0,9.591e-05,2]
[401233532,1768060238890,-500.0,9.591e-05,2]
[401233533,1768060238900,-649.08676263,9.591e-05,2]
[401233534,1768060238911,-500.0,9.591e-05,2]
[401233535,1768060238922,-500.0,9.591e-05,2]
[401233536,1768060238933,-256.76736532,9.591e-05,2]
[401233537,1768060238947,-243.23263468,9.591e-05,2]
[401233538,1768060238958,-649.08676263,9.591e-05,2]
[401233539,1768060238969,-500.0,9.591e-05,2]
[401233540,1768060238979,-500.0,9.591e-05,2]
[401233541,1768060238993,-500.0,9.591e-05,2]
[401233542,1768060239005,-500.0,9.591e-05,2]
[401233543,1768060239017,-649.08676263,9.591e-05,2]
[401233544,1768060239027,-500.0,9.591e-05,2]
[401233545,1768060239039,-500.0,9.591e-05,2]
[401233546,1768060239051,-649.08676263,9.591e-05,2]
[401233547,1768060239061,-500.0,9.591e-05,2]
[401233548,1768060239073,-500.0,9.591e-05,2]
[401233549,1768060239085,-500.0,9.591e-05,2]
[401233550,1768060239097,-649.08676263,9.591e-05,2]
[401233551,1768060239109,-500.0,9.591e-05,2]
[401233552,1768060239121,-500.0,9.591e-05,2]
[401233553,1768060239132,-500.0,9.591e-05,2]
[401233554,1768060239144,-649.08676263,9.591e-05,2]
[401233555,1768060239156,-500.0,9.591e-05,2]
[401233556,1768060239166,-500.0,9.591e-05,2]
[401233557,1768060239176,-500.0,9.591e-05,2]
[401233558,1768060239186,-649.08676263,9.591e-05,2]
[401233559,1768060239195,-500.0,9.591e-05,2]
[401233560,1768060239205,-500.0,9.591e-05,2]
[401233561,1768060239215,-500.0,9.591e-05,2]
[401233562,1768060239225,-649.08676263,9.591e-05,2]
[401233563,1768060239237,-500.0,9.591e-05,2]
[401233564,1768060239249,-500.0,9.591e-05,2]
[401233565,1768060239259,-500.0,9.591e-05,2]
[401233566,1768060239269,-500.0,9.591e-05,2]
[401233567,1768060239278,-500.0,9.591e-05,2]
[401233568,1768060239288,-500.0,9.591e-05,2]
[401233569,1768060239298,-247.37926034,9.591e-05,2]
[401233570,1768060239340,-252.62073966,9.591e-05,2]
[401233571,1768060239349,-500.0,9.591e-05,2]
[401233572,1768060239359,-523.32523363,9.591e-05,2]
[401233573,1768060239368,-500.0,9.591e-05,2]
[401233574,1768060239377,-500.0,9.591e-05,2]
[401233575,1768060239387,-500.0,9.591e-05,2]
[401233576,1768060239399,-500.0,9.591e-05,2]
[401233577,1768060239408,-500.0,9.591e-05,2]
[401233578,1768060239418,-500.0,9.591e-05,2]
[401233579,1768060239427,-500.0,9.591e-05,2]
[401233580,1768060239436,-500.0,9.591e-05,2]
[401233581,1768060239446,-500.0,9.591e-05,2]
[401233582,1768060239455,-649.08676263,9.591e-05,2]
[401233583,1768060239466,-500.0,9.591e-05,2]
[401233584,1768060239475,-649.08676263,9.591e-05,2]
[401233585,1768060239485,-500.0,9.591e-05,2]
[401233586,1768060239495,-649.08676263,9.591e-05,2]
[401233587,1768060239505,-500.0,9.591e-05,2]
[401233588,1768060239516,-649.08676263,9.591e-05,2]
[401233589,1768060239526,-649.08676263,9.591e-05,2]
[401233590,1768060239536,-649.08676263,9.591e-05,2]
[401233591,1768060239545,-649.08676263,9.591e-05,2]
[401233592,1768060239555,-649.08676263,9.591e-05,2]
[401233593,1768060239565,-649.08676263,9.591e-05,2]
[401233594,1768060239574,-649.08676263,9.591e-05,2]
[401233595,1768060239583,-649.08676263,9.591e-05,2]
[401233598,1768060239593,-649.08676263,9.591e-05,2]
[401233599,1768060239602,-649.08676263,9.591e-05,2]
[401233600,1768060239611,-649.08676263,9.591e-05,2]
[401233601,1768060239621,-649.08676263,9.591e-05,2]
[401233602,1768060239631,-649.08676263,9.591e-05,2]
[401233603,1768060239641,-970116.31942796,9.592e-05,2]
[401233604,1768060239651,-554.0,9.592e-05,2]
[401233605,1768060239660,-50000.0,9.692e-05,2]
[401233606,1768060239670,-349.74,9.692e-05,2]
[401233607,1768060239680,-500.0,9.698e-05,2]
[401233608,1768060239689,-2755.17889986,9.698e-05,2]
[401233609,1768060239699,-2755.17889982,9.747e-05,2]
[401233610,1768060239709,-2755.17889982,9.795e-05,2]
[401233611,1768060239718,-2755.17889982,9.844e-05,2]
[401233612,1768060239728,-600.0,9.892e-05,2]
[401233613,1768060239737,-2755.17889982,9.892e-05,2]
[401233614,1768060239746,-349.74,9.966e-05,2]
[401233615,1768060239754,-500.0,9.972e-05,2]
[401233616,1768060239764,-300.0,0.00010096,2]
[401233617,1768060239774,-300.0,0.00010096,2]
[401233618,1768060239783,-300.0,0.00010096,2]
[401233619,1768060239793,-300.0,0.00010096,2]
[401233620,1768060239802,-300.0,0.00010096,2]
[401233621,1768060239812,-300.0,0.00010096,2]
[401233622,1768060239821,-300.0,0.00010096,2]
[401233623,1768060239831,-300.0,0.00010096,2]
[401233624,1768060239841,-300.0,0.00010096,2]
[401233625,1768060239850,-300.0,0.00010096,2]
[401233626,1768060239860,-300.0,0.00010096,2]
[401233627,1768060239869,-300.0,0.00010096,2]
[401233628,1768060239879,-300.0,0.00010096,2]
[401233629,1768060239889,-300.0,0.00010096,2]
[401233630,1768060239899,-300.0,0.00010096,2]
[401233631,1768060239908,-349.74,0.0001024,2]
[401233632,1768060239917,-319.54093411,0.00010246,2]
[401233633,1768060239927,-349.74,0.00010514,2]
[401233634,1768060239936,-420.0,0.0001055,2]
[401233635,1768060239945,-1680.0,0.0001055,2]
[401233636,1768060239954,-349.74267094,0.00010788,2]
[401233637,1768060239963,-720.0,0.00010881,2]
[401233638,1768060239973,-1254.917095,0.00010959,2]
[401233639,1768060239982,-177.0,0.00011461,2]
[401233641,1768060239992,-587.0,0.00011605,2]
[401233643,1768060240001,-2351.0,0.00011605,2]
[401233645,1768060240011,-864.0,0.00011969,2]
[401233646,1768060240019,-11793.76,0.00012329,2]
[401233649,1768060240029,-9828.13,0.00012329,2]
[401233650,1768060240039,-8190.11,0.00012329,2]
[401233652,1768060240049,-6825.09,0.00012329,2]
[401233654,1768060240059,-5687.57,0.00012329,2]
[401233656,1768060240069,-4739.65,0.00012329,2]
[401233658,1768060240079,-3949.7,0.00012329,2]
[401233660,1768060240088,-3291.42,0.00012329,2]
[401233662,1768060240097,-2742.85,0.00012329,2]
[401233664,1768060240107,-2285.71,0.00012329,2]
[401233666,1768060240117,-1904.76,0.00012329,2]
[401233668,1768060240126,-1587.3,0.00012329,2]
[401233670,1768060240135,-1322.75,0.00012329,2]
[401233672,1768060240144,-1102.29,0.00012329,2]
[401233674,1768060240154,-918.57,0.00012329,2]
[401233676,1768060240163,-765.48,0.00012329,2]
[401233678,1768060240174,-637.9,0.00012329,2]
[401233680,1768060240183,-531.58,0.00012329,2]
[401233682,1768060240193,-442.99,0.00012329,2]
[401233684,1768060240202,-369.15,0.00012329,2]
[401233686,1768060240211,-307.63,0.00012329,2]
[401233688,1768060240220,-256.36,0.00012329,2]
[401233690,1768060240230,-213.63,0.00012329,2]
[401233692,1768060240239,-178.03,0.00012329,2]
[401233694,1768060240248,-890.15,0.00012329,2]
[401233696,1768060240257,-823.0,0.00012765,2]
[401233698,1768060240267,-3292.0,0.00012765,2]
[401233700,1768060240277,-250.0,0.00012806,2]
[401233702,1768060240286,-329671.051411,0.00012902,2]
[401233704,1768060240295,-318.0,0.00012956,2]
[401233706,1768060240305,-884.8,0.00013011,2]
[401233708,1768060240314,-1000.0,0.00013166,2]
[401233710,1768060240323,-204.0,0.00013461,2]
[401233712,1768060240332,-900.827532,0.00013699,2]
[401233714,1768060240341,-1152.0,0.00014042,2]
[401233715,1768060240350,-2918.0,0.00014042,2]
[401233717,1768060240360,-1000.0,0.00014483,2]
[401233719,1768060240370,-244.0,0.00014483,2]
[401233721,1768060240380,-11821.97972715,0.00014733,2]
[401233723,1768060240390,-1852.881,0.00015068,2]
[401233725,1768060240403,-1613.0,0.00015446,2]
[401233727,1768060240412,-231.0,0.00015461,2]
[401233741,1768060240532,-1000.0,0.00015931,2]
[401233743,1768060240542,-492.0,0.00015931,2]
[401233745,1768060240552,-2258.0,0.00016991,2]
[401233747,1768060240562,-258.0,0.00017461,2]
[401233749,1768060240572,-1000.0,0.00017524,2]
[401233751,1768060240582,-791.0,0.00017524,2]
[401233753,1768060240591,-432.0,0.0001869,2]
[401233755,1768060240600,-1000.0,0.00019276,2]
[401233757,1768060240610,-1000.0,0.00019276,2]
[401233759,1768060240619,-6834.71,0.000193,2]
[401233761,1768060240628,-185.94,0.000193,2]
[401233763,1768060240637,-285.0,0.00019461,2]
[401233765,1768060240647,-1000.0,0.00021204,10]
[401233767,1768060240656,-1000.0,0.00021204,10]
[401233769,1768060240666,-579.0,0.00021204,10]
[401233771,1768060240674,-586.45728253,0.00021414,2]
[401233773,1768060240684,-2343.48330101,0.00021414,2]
[401233775,1768060240693,-312.0,0.00021461,2]
[401233777,1768060240703,-1000.0,0.00023324,10]
[401233779,1768060240713,-1000.0,0.00023324,10]
[401233781,1768060240722,-1000.0,0.00023324,10]
[401233783,1768060240732,-339.0,0.00023461,2]
[401233785,1768060240741,-190.0,0.00024548,13]
[401233787,1768060240750,-366.0,0.00025461,2]
[401233789,1768060240759,-1000.0,0.00025657,10]
[401233791,1768060240769,-1000.0,0.00025657,10]
[401233793,1768060240778,-1000.0,0.00025657,10]
[401233795,1768060240788,-715.0,0.00025657,10]
[401233797,1768060240797,-393.0,0.00027461,2]
[401233799,1768060240806,-1000.0,0.00028223,30]
[401233801,1768060240816,-1000.0,0.00028223,30]
[401233803,1768060240825,-1000.0,0.00028223,30]
[401233805,1768060240834,-177.0,0.00028384,29]
[401233806,1768060240844,-503.55820334,0.00029361,2]
[401233808,1768060240853,-420.0,0.00029461,2]
[401233810,1768060240863,-503.55820326,0.00030209,2]
[401233812,1768060240874,-611.163,0.00030421,26]
[401233814,1768060240883,-174.102,0.00030421,26]
[401233816,1768060240893,-503.55820326,0.00031058,2]
[401233819,1768060240902,-447.0,0.00031461,2]
[401233820,1768060240912,-503.55820326,0.00031906,2]
[401233823,1768060240924,-503.55820326,0.00032754,2]
[401233824,1768060240935,-999.0,0.00032876,120]
[401233826,1768060240947,-6334.84121392,0.00033084,2]
[401233828,1768060240956,-151.6053793,0.000332,117]
[401233830,1768060240965,-151.6053793,0.000332,117]
[401233832,1768060240975,-151.6053793,0.000332,117]
[401233834,1768060240985,-474.0,0.00033461,120]
[401233836,1768060240995,-503.55820326,0.00033603,2]
[401233839,1768060241004,-210.0,0.00033699,5]
[401233840,1768060241015,-160.0,0.00033863,64]
[401233843,1768060241027,-324.5,0.00033881,30]
[401233845,1768060241037,-999.0,0.00033972,120]
[401233847,1768060241047,-5058.79910613,0.00034072,46]
[401233848,1768060241058,-503.55820326,0.00034451,2]
[401233850,1768060241069,-270.0,0.00034521,5]
[401233853,1768060241079,-999.0,0.00035068,120]
[401233854,1768060241089,-503.55820326,0.00035299,2]
[401233856,1768060241099,-330.0,0.00035342,5]
[401233859,1768060241108,-500.0,0.00035616,30]
[401233860,1768060241119,-334.34878739,0.00035616,7]
[401233862,1768060241128,-185.94,0.000357,30]